Cogmind - Beta 11.1 @@@ ROGUE MODE // 2022.04.24 @ 16:53:15 // Winter2019/RPGLIKE Player: Rainynight Result: Self-destructed Performance ------------- Evolutions (1) 500 Regions Visited (5) 1000 Robots Destroyed (36) 180 Value Destroyed (974) 974 Prototype IDs (25) 500 Alien Tech Used (0) 0 Bonus (316) 316 TOTAL SCORE: 3470 Bonus ------- High Alert Combat Kills 8 Follower Combat Kills 32 Aligned with FarCom 300 Friendly Fire -24 Cogmind --------- Core Integrity 459/600 Matter 300/300 Energy 359/465 System Corruption 5% Temperature Cool (8) Movement Rolling (95) Ox1 Location -9/Exiles Parts ------- > --- POWER (1) -------- Improved Ion Engine > --- PROPULSION (2) --- Wheel Wheel > --- UTILITY (2) ------ Improved Terrain Scanner Trap Reconfigurator > --- WEAPON (4) ------- EM Pulse Cannon EM Pulse Cannon EM Pulse Cannon EM Pulse Cannon > --- INVENTORY (2) ---- Ripper Peak State ------------ > --- POWER ------------ Improved Ion Engine > --- PROPULSION ------- Wheel Wheel > --- UTILITY ---------- Improved Terrain Scanner Trap Reconfigurator > --- WEAPON ----------- EM Pulse Cannon EM Pulse Cannon EM Pulse Cannon Ripper > --- INVENTORY -------- EM Pulse Cannon [Rating: 29] Favorites ----------- Power Improved Ion Engine Engine Improved Ion Engine Propulsion Wheel Wheel Wheel Utility Improved Terrain Scanner Device Improved Terrain Scanner Processor Targeting Computer Weapon EM Pulse Cannon Energy Gun Small Laser Energy Cannon EM Pulse Cannon Slashing Weapon Ripper Build | -11 -10 -10 -9 -9 -9 ------- Run | Scr Mat Min Mat Min Exi Slots Evolved 5 | 3 . . 1 . 1 Power . | . . . . . . Propulsion 1 | 1 . . . . . Utility 1 | 1 . . . . . Weapon 3 | 1 . . 1 . 1 Parts Attached 22 | 6 3 3 7 . 3 Power 3 | 1 . 1 1 . . Engine 3 | 1 . 1 1 . . Core . | . . . . . . Reactor . | . . . . . . Propulsion 2 | 2 . . . . . Treads . | . . . . . . Leg . | . . . . . . Wheel 2 | 2 . . . . . Hover . | . . . . . . Flight . | . . . . . . Utility 4 | 1 1 . 1 . 1 Device 3 | 1 . . 1 . 1 Storage . | . . . . . . Processor 1 | . 1 . . . . Hackware . | . . . . . . Protection . | . . . . . . Artifact . | . . . . . . Weapon 13 | 2 2 2 5 . 2 Energy Gun 5 | 2 1 1 1 . . Energy Cannon 6 | . 1 . 3 . 2 Ballistic Gun . | . . . . . . Ballistic Cannon . | . . . . . . Launcher . | . . . . . . Special Weapon . | . . . . . . Impact Weapon . | . . . . . . Slashing Weapon 2 | . . 1 1 . . Piercing Weapon . | . . . . . . Special Melee Weapon . | . . . . . . Unidentified Prototypes . | . . . . . . Parts Lost . | . . . . . . Power . | . . . . . . Propulsion . | . . . . . . Utility . | . . . . . . Weapon . | . . . . . . Highest Loss Streak . | . . . . . . To Critical Strikes . | . . . . . . Average Slot Usage (%) 98 | . 91 100 99 100 100 Engine 12 | . 14 14 12 12 11 Wheel 26 | . 28 28 25 25 24 Device 20 | . 14 14 24 25 24 Processor 4 | . 6 14 . . . Energy Gun 6 | . 22 13 . . . Energy Cannon 22 | . 5 14 32 25 27 Slashing Weapon 5 | . . . 4 12 10 Naked Turns . | . . . . . . Heaviest Build 33 | 8 10 14 29 26 33 Greatest Support 30 | 20 20 20 20 30 30 Greatest Overweight (x) 1 | . . . 1 1 1 Average Overweight (x) . | . . . . . . Largest Inventory Capacity 2 | 2 2 2 2 2 2 Average Capacity 1 | 1 2 2 2 2 2 Most Carried 2 | . 2 2 2 2 2 Average Carried 1 | . 1 1 1 2 1 Final Capacity 2 | 2 2 2 2 2 2 Final Carried 2 | . 2 2 2 2 1 Class Distribution -------------------- 83% | Mutant 12% | Gunner 3% | Skirmisher Dominant Class ---------------- Mutant | -10/Materials Mutant | -10/Mines Mutant | -9/Materials Mutant | -9/Mines Mutant | -9/Exiles Resources | -11 -10 -10 -9 -9 -9 ----------- Run | Scr Mat Min Mat Min Exi Matter Collected 446 | 161 15 134 84 17 35 Remotely . | . . . . . . Salvage Created 1166 | 11 75 162 639 73 206 Parts 80 | 4 11 9 39 7 10 Haulers Intercepted . | . . . . . . Recyclers Shooed . | . . . . . . Parts Field Recycled . | . . . . . . Retrieved Matter . | . . . . . . Parts Self-Destructed . | . . . . . . Prevented . | . . . . . . Kills | -11 -10 -10 -9 -9 -9 ------- Run | Scr Mat Min Mat Min Exi Combat Hostiles Destroyed 28 | . 3 2 13 4 6 Melee 11 | . . . 10 1 . Guns 3 | . 3 . . . . Cannons 14 | . . 2 3 3 6 Classes Destroyed 12 | 1 3 1 4 . 3 Worker 2 | . 1 . . 1 . Builder 1 | . . . 1 . . Tunneler 2 | 1 . . . 1 . Mechanic 1 | . . . 1 . . Operator 2 | . 1 . 1 . . Watcher 1 | . . . 1 . . Swarmer 7 | . 3 . 1 3 . Grunt 12 | . . . 9 1 2 Sentry 5 | . . 2 3 . . Demolisher 1 | . . . . . 1 Hunter 2 | . . . . . 2 Assembled 1 | . . . . . 1 Best Kill Streak 10 | 1 2 2 10 3 6 Combat Bots Only 9 | . 2 2 9 3 6 Max Kills in Single Turn 2 | 1 1 1 1 1 2 Gunslinging . | . . . . . . Exploded . | . . . . . . Melee 1 | . . . 1 1 . Uniques/NPCs Destroyed . | . . . . . . Combat | -11 -10 -10 -9 -9 -9 -------- Run | Scr Mat Min Mat Min Exi Damage Taken 1017 | . 30 112 588 35 252 Core 828 | . 22 91 481 28 206 Absorbed by Shields . | . . . . . . Redirected to Core 639 | . 22 78 356 21 162 Core Remaining (%) 92 | 100 . 84 . . . Volleys Fired 33 | 1 7 5 7 6 7 Largest 4 | 2 2 2 3 2 4 Hottest 252 | 80 80 100 189 126 252 Shots Fired 75 | 2 13 10 17 12 21 Gun 19 | 2 12 5 . . . Cannon 56 | . 1 5 17 12 21 Launcher . | . . . . . . Special . | . . . . . . Kinetic . | . . . . . . Thermal 20 | 2 13 5 . . . Explosive . | . . . . . . Electromagnetic 55 | . . 5 17 12 21 Robot Hit Streak 14 | 2 6 11 14 7 8 Robot Miss Streak 2 | . 1 . 2 1 1 Penetration Max . | . . . . . . Secondary Targets . | . . . . . . Shots Hit Robots 76 | 2 7 10 32 12 13 Core Hits 39 | 1 6 4 17 5 6 Critical Kills . | . . . . . . Critical Parts Destroyed . | . . . . . . Critical Strikes 3 | . . 1 1 1 . Corrupt 1 | . . 1 . . . Sever 2 | . . . 1 1 . Melee Attacks 34 | . . 2 25 7 . Impact . | . . . . . . Slashing 34 | . . 2 25 7 . Piercing . | . . . . . . Sneak Attacks 5 | . . . 2 3 . Combat Hostiles . | . . . . . . Follow-up Attacks . | . . . . . . Damage Inflicted 2257 | 22 83 142 1248 477 285 Guns 143 | 22 65 56 . . . Cannons 859 | . 18 86 309 161 285 Explosions 32 | . . . 32 . . Melee 1223 | . . . 907 316 . Ramming . | . . . . . . Kinetic . | . . . . . . Thermal 223 | 22 83 86 32 . . Explosive . | . . . . . . Electromagnetic 811 | . . 56 309 161 285 Impact . | . . . . . . Slashing 1223 | . . . 907 316 . Piercing . | . . . . . . Highest Corruption 5 | . . . 4 4 5 Average Corruption 3 | . . . 3 4 4 Corruption Purged . | . . . . . . Corruption Blocked . | . . . . . . Effects 17 | . . . 5 7 5 Message Errors 8 | . . . . 4 4 Matter Fused 4 | . . . 3 . 1 Heat Flow Errors 2 | . . . 1 1 . Energy Discharges 1 | . . . . 1 . Data Loss (minor) 1 | . . . 1 . . Alerts 1 | . . . . 1 . Overload Shots . | . . . . . . Overflow Damage 93 | . . . 16 74 3 Projectiles 18 | . . . 14 1 3 Explosions . | . . . . . . Melee 75 | . . . 2 73 . Knockbacks . | . . . . . . Impact . | . . . . . . Kinetic . | . . . . . . Secondary . | . . . . . . Self-Inflicted Damage . | . . . . . . Shots . | . . . . . . Rammed . | . . . . . . Targets Rammed . | . . . . . . Kicked . | . . . . . . Crushed . | . . . . . . Highest Temperature 240 | 18 36 222 74 111 240 Average Temperature 67 | 12 17 112 41 42 104 Received Heat Transfer 318 | . . 36 261 15 6 Siege Activations . | . . . . . . Robots Corrupted . | . . . . . . Combat Hostiles . | . . . . . . Parts Fried 4 | . . . 1 1 2 Impact Corruptions . | . . . . . . Robots Melted . | . . . . . . Combat Hostiles . | . . . . . . Parts Melted 1 | . . . 1 . . Heat Transferred 472 | 50 187 185 50 . . Parts Sabotaged . | . . . . . . Parts Stolen . | . . . . . . Parts Stripped . | . . . . . . Power Chain Reactions 1 | . . . 1 . . Missiles Intercepted . | . . . . . . Alert | -11 -10 -10 -9 -9 -9 ------- Run | Scr Mat Min Mat Min Exi Peak Influence 426 | 5 141 61 426 337 . Initial 165 | . 3 . 23 165 . Average 131 | 1 101 38 156 279 . Maximum Alert Level 2 | . . . 2 1 . Low Security (%) 77 | 100 100 100 75 21 . Level 1 19 | . . . 16 78 . Level 2 2 | . . . 7 . . Level 3 . | . . . . . . Level 4 . | . . . . . . Level 5 . | . . . . . . High Security . | . . . . . . Max Security . | . . . . . . Squads Dispatched 5 | . 1 1 3 . . Investigation 5 | . 1 1 3 . . Extermination . | . . . . . . Reinforcement . | . . . . . . Assault . | . . . . . . Garrison . | . . . . . . Intercept . | . . . . . . Searches Triggered . | . . . . . . Construction Impeded . | . . . . . . Haulers Reinforced . | . . . . . . Active Scanning Responses . | . . . . . . Cargo Convoy Interrupts . | . . . . . . Stealth | -11 -10 -10 -9 -9 -9 --------- Run | Scr Mat Min Mat Min Exi Distress Signals 1 | . . . 1 . . Communications Jammed . | . . . . . . Distress Signals . | . . . . . . Times Spotted 59 | . 6 2 25 6 20 Peak Tracking Total 20 | . 3 2 6 4 20 Tactical Retreats 2 | . 1 . . . 1 Traps | -11 -10 -10 -9 -9 -9 ------- Run | Scr Mat Min Mat Min Exi Traps Triggered 4 | . . . 4 . . Indirectly . | . . . . . . Trap Hack Attempts . | . . . . . . Triggered . | . . . . . . Disarmed . | . . . . . . Reprogrammed . | . . . . . . Reused . | . . . . . . Traps Extracted . | . . . . . . Installed . | . . . . . . Triggered . | . . . . . . Exploded 2 | . . . . . 2 Machines | -11 -10 -10 -9 -9 -9 ---------- Run | Scr Mat Min Mat Min Exi Machines Disabled . | . . . . . . Max in Single Turn . | . . . . . . Machines Sabotaged . | . . . . . . Garrisons Compromised . | . . . . . . Overloaded Fab Kills . | . . . . . . Hacking | -11 -10 -10 -9 -9 -9 --------- Run | Scr Mat Min Mat Min Exi Machines Accessed 13 | . 6 1 5 . 1 Terminals 10 | . 6 . 4 . . Fabricators . | . . . . . . Repair Stations . | . . . . . . Recycling Units 1 | . . . 1 . . Scanalyzers . | . . . . . . Garrison Access . | . . . . . . Total Hacks 30 | . 14 1 14 . 1 Successful 15 | . 9 1 4 . 1 Failed 15 | . 5 . 10 . . Catastrophic 4 | . 1 . 3 . . Database Lockouts . | . . . . . . Manual 16 | . 5 . 10 . 1 Terminals 26 | . 14 . 12 . . Fabricators . | . . . . . . Repair Stations . | . . . . . . Recycling Units 2 | . . . 2 . . Scanalyzers . | . . . . . . Garrison Access . | . . . . . . Terminal Hacks 13 | . 9 1 2 . 1 Robot Analysis 1 | . 1 . . . . Prototype ID Bank 1 | . 1 . . . . Open Door 1 | . . 1 . . . Branch Access Points 2 | . 1 . 1 . . Emergency Access Points 1 | . 1 . . . . Unreport Threat 1 | . 1 . . . . Locate Traps 4 | . 3 . 1 . . Hauler Manifests 1 | . 1 . . . . EX-Prototype ID Bank 1 | . . . . . 1 Fabricator Hacks . | . . . . . . Repair Station Hacks . | . . . . . . Recycling Unit Hacks 1 | . . . 1 . . Report Inventory 1 | . . . 1 . . Scanalyzer . | . . . . . . Garrison Access Hacks . | . . . . . . Unauthorized Hacks 1 | . . . 1 . . Terminals . | . . . . . . Fabricators . | . . . . . . Repair Stations . | . . . . . . Recycling Units 1 | . . . 1 . . Reject 1 | . . . 1 . . Scanalyzers . | . . . . . . Garrison Access . | . . . . . . Data Cores Recovered 1 | . 1 . . . . Used 1 | . 1 . . . . Hacking Detections 8 | . 3 . 5 . . Full Trace Events 6 | . 3 . 3 . . Feedback Events . | . . . . . . Feedback Blocked . | . . . . . . Robot Schematics Acquired . | . . . . . . Robots Built . | . . . . . . Authchips . | . . . . . . Time . | . . . . . . Total Robot Build Rating . | . . . . . . Part Schematics Acquired . | . . . . . . Parts Built . | . . . . . . Authchips . | . . . . . . Time . | . . . . . . Total Part Build Rating . | . . . . . . Parts Repaired . | . . . . . . Time . | . . . . . . Parts Recycled . | . . . . . . Recycled Matter . | . . . . . . Retrieved Matter . | . . . . . . Retrieved Components . | . . . . . . Parts Scanalyzed . | . . . . . . Part Schematics Acquired . | . . . . . . Parts Damaged . | . . . . . . Bothacking | -11 -10 -10 -9 -9 -9 ------------ Run | Scr Mat Min Mat Min Exi Used RIF Installer . | . . . . . . Robots Hacked . | . . . . . . Non-combat . | . . . . . . Combat . | . . . . . . Robot Hacks Applied . | . . . . . . Relay Couplers Released . | . . . . . . Fabnet Peak Effective % . | . . . . . . Robots Rewired . | . . . . . . Allies Hacked . | . . . . . . Hacks Repelled . | . . . . . . Allies | -11 -10 -10 -9 -9 -9 -------- Run | Scr Mat Min Mat Min Exi Total Allies 2 | . . . . 2 . Largest Group 2 | . . . . 2 1 Highest-Rated Group 43 | . . . . 43 31 Highest-Rated Ally 31 | . . . . 31 31 Total Orders . | . . . . . . Ally Attacks 7 | . . . . 7 . Total Damage 85 | . . . . 85 . Kills 2 | . . . . 2 . Allies Corrupted . | . . . . . . Allies Melted . | . . . . . . Intel | -11 -10 -10 -9 -9 -9 ------- Run | Scr Mat Min Mat Min Exi Robot Analysis Total 1 | . 1 . . . . Derelict Logs Recovered 2 | . . 1 . 1 . Drone Launches . | . . . . . . Drone Recoveries . | . . . . . . Exploration | -11 -10 -10 -9 -9 -9 ------------- Run | Scr Mat Min Mat Min Exi Turns Passed 1387 | 37 180 327 391 206 246 Spaces Moved 1287 | 32 174 366 272 182 261 Core 2 | 2 . . . . . Treads . | . . . . . . Legs . | . . . . . . Wheels 1285 | 30 174 366 272 182 261 Hover . | . . . . . . Flight . | . . . . . . Fastest Speed 50 | 50 80 80 80 80 80 Average Speed 83 | 78 80 80 94 80 80 Slowest Speed 95 | 80 80 80 95 95 95 Overloaded Moves . | . . . . . . Propulsion Burnouts . | . . . . . . Robots Hopped . | . . . . . . Cave-ins Triggered . | . . . . . . Exploration Rate (%) 42 | 2 45 81 32 53 42 Regions Visited 5 Branch Regions 3 Pre-discovered Areas . | . . . . . . Known Exits Taken 2 | . 1 . 1 . . Unknown Exits Taken 3 | 1 . 1 . 1 . Scrap Searched 2 | . . 1 . 1 . Spaces Dug 4 | . . 2 . 2 . Terrain Destroyed 7 | . . 2 3 2 . Melee 4 | . . 2 . 2 . Projectile . | . . . . . . AOE 3 | . . . 3 . . Terrain Rammed . | . . . . . . Walls Destroyed . | . . . . . . Machines Disabled . | . . . . . . Actions | -11 -10 -10 -9 -9 -9 --------- Run | Scr Mat Min Mat Min Exi Total 1478 | 38 201 387 354 219 279 Wait 51 | . 13 6 16 13 3 Move 1282 | 31 173 365 271 181 261 Hop . | . . . . . . Pick Up 4 | . 1 2 1 . . Fast Attach 14 | 6 2 1 4 . 1 Attach 1 | . . . . . 1 Detach 2 | . 1 . 1 . . Swap 7 | . 1 2 3 . 1 Drop 10 | . 1 4 4 . 1 Fire 33 | 1 7 5 7 6 7 Melee 34 | . . 2 25 7 . Ram . | . . . . . . Kick . | . . . . . . Crush . | . . . . . . Escape Stasis . | . . . . . . Rewire . | . . . . . . Trap . | . . . . . . Miscellaneous 40 | . 2 . 22 12 4 Route ------- -11/Scrapyard -10/Materials (discovered 3 exits: *Mat x2 / *Min) -10/Mines -9/Materials (discovered 3 exits: [*Mat] / *Min / *Sto) -9/Mines (discovered 3 exits: [*Mat x2] / *Exi) -9/Exiles History --------- Turn | Location | Event 12 | -11/Scrapyard | Discovered new exit (range 16) 13 | -11/Scrapyard | Upgraded with Propulsion slot (x1) 13 | -11/Scrapyard | Upgraded with Utility slot (x1) 13 | -11/Scrapyard | Upgraded with Weapon slot (x1) 38 | -11/Scrapyard | Entered Materials 57 | -10/Materials | Identified exit to Mines 94 | -10/Materials | Discovered new exit (range 15) 189 | -10/Materials | Discovered new exit (range 4) 218 | -10/Materials | Entered Mines 243 | -10/Mines | Met a Derelict shopkeep closing up shop 308 | -10/Mines | Build established: Mutant 390 | -10/Mines | A weapon hastily lodged in a ceiling crevice suddenly fell to the ground 450 | -10/Mines | Assembled infested the area 455 | -10/Mines | Assisted by a Guerilla fighting off Assembled 487 | -10/Mines | Learned Materials emergency access door positions 496 | -10/Mines | Discovered new exit (range 15) 545 | -10/Mines | Entered Materials 547 | -9/Materials | Reached level 2 547 | -9/Materials | Upgraded with Weapon slot (x1) 547 | -9/Materials | Discovered new exit (range 9) 597 | -9/Materials | Identified exit to Mines 597 | -9/Materials | Identified exit to Storage 732 | -9/Materials | Discovered new exit (range 16) 742 | -9/Materials | Reached level 3 928 | -9/Materials | Destroyed 9 combat bots 936 | -9/Materials | Entered Mines 938 | -9/Mines | Reached level 4 971 | -9/Mines | Learned location of 1 exit from Materials 1080 | -9/Mines | Discovered new exit (range 9) 1121 | -9/Mines | Discovered new exit (range 16) 1132 | -9/Mines | Discovered new exit (range 8) 1135 | -9/Mines | Deemed a non-threat by the Exiles lab entrance 1142 | -9/Mines | Entered Exiles 1142 | -9/Exiles | Accompanied by 1 ally 1162 | -9/Exiles | Met 8R-AWN 1172 | -9/Exiles | Led the pair of lost Derelicts to a safe place 1175 | -9/Exiles | Met EX-HEX 1197 | -9/Exiles | Met EX-BIN 1208 | -9/Exiles | Aligned with FarCom system 1209 | -9/Exiles | Given EX-Vault access code 1227 | -9/Exiles | Opened EX-Vault 1235 | -9/Exiles | Found Trap Reconfigurator 1255 | -9/Exiles | Warned to stay clear of 0b10 Research branches 1262 | -9/Exiles | Exiles lab attacked by MAIN.C 1331 | -9/Exiles | Reached level 5 1334 | -9/Exiles | Upgraded with Weapon slot (x1) 1344 | -9/Exiles | Attacked by the Exiles 1388 | -9/Exiles | Self-destructed Last Messages --------------- 01343_ Assault Rifle fried. 01343_ H-55 Commando destroyed. 01344_ EXILES: Additional hostile detected within perimeter. 01345_ as-71081 destroyed. 01346_ as-58076 destroyed. 01347_ as-83164 destroyed. 01349_ G-34 Mercenary destroyed. 01349_ Targeting Computer fried. 01349_ H-55 Commando destroyed. 01353_ Upgraded: Heat Dissipation (+18) 01355_ G-34 Mercenary destroyed. 01362_ Used Protomatter to restore core integrity (+65) 01364_ Used Protomatter to restore part integrity (+13) 01370_ The unstable cave ceiling collapses. 01370_ Acquired 21 matter. 01373_ Acquired 14 matter. 01377_ Penetrated by HV Slug. 01379_ Protomatter-7 decays. 01379_ Penetrated by HV Slug. 01386_ HV Slug penetrates Wall. Map ----- +----------------------------------------------------+ | """##?"?"???#????????????????????????? | | """##??"?#???????????????????????????? | | """"""?? ##??????????????????????????? | | """#######???????????????????????????? | | " "X" """""? #?#??????????????????????????? | | " """ #?""?#??#?????????????????????????? | | " """""""""# """?#????????#?#?#???##?#?#?????? | | " ########### ?""##?##?????##???####?????##???? | | " ####?#########??###??#???####???#??#??#?##### | | ########?########?###?#?#??##????#####?#?#?## | | ###########?####??#?####?##?#########?####### | | ####?#############?#####?#?######?########## | | #####"""""""""########?###############?#?#? | | " """ """"###########?###########?#### | | "" " ########?####?##########?## | | " """############?###########?#? | | "a"#####################?##### | | " "#########?###" ########### | | ""###########" ########### | | """ """######### ##?######## | | ##""" "####### ########## | | ######""" ##### g ####### | | #######""" #### ph #"" "# | | ###?###"""" ###%[ ppp h % | | #######"" %%=!%= # | | ######"""" @ %%%*[% ### | | ###""" =%%%* ###"""""#### | | """" ! *%#["" ############### | | ! = ##############?###### | | = ###################### | | " ####################### | | "" "" "###############?####### | | # ##""" " " ""#" "#######################? | | #? ######""" """##"""""""#####################?### | | ?? ########""""#######################?########?#? | | #? #?####?#######################################? | | ?? " #######?########??##??####################?# | | ??? ?####?###################?#########??#?###### | | ?? ???################?#?#####?#??##??############ | | ??? "?####?#################?###?###?####???#?#?? | | ?#?#####?##?###?#?###########??#?##???#???????##?? | | ??#??##??#?#########?#?#####?###????#????????????? | | ????#?#?#?#####?##########????##?????????????????? | | ?????????##?????#?#####?#????????????????????????? | | ???????#?#????#??#??###??#?#?????????????????????? | | ?????????????????##????#?????????????????????????? | | ?????????????????????????????????????????????????? | | ?????????????????????????????????????????????????? | | ?????????????????????????????????????????????????? | | ?????????????????????????????????????????????????? | +----------------------------------------------------+ Best States ------------- Heat Dissipation 67 Energy Generation 22 Energy Capacity 465 Matter Stores 300 Matter Capacity 300 Sight Range 16 Terrain Scan Range 16 Terrain Scan Density 510 Resistance: KI 10 Evasion (%) 44 Targeting Accuracy 5 Particle Charging 15 Item Schematics ----------------- None Robot Schematics ------------------ None Fabricated ------------ Nothing Alien Tech Used ----------------- None Achievements -------------- None Challenges ------------ None RPGLIKE | -11 -10 -10 -9 -9 -9 --------- Run | Scr Mat Min Mat Min Exi Levels Raised 4 | . . . 2 1 1 XP Earned 9444 | 3000 350 700 3249 1295 850 XP Spent 8970 | 2900 . . 2920 1200 1950 Upgrades 30 | 10 . . 11 4 5 Propulsion Slot 1 | 1 . . . . . Utility Slot 1 | 1 . . . . . Weapon Slot 3 | 1 . . 1 . 1 Heat Dissipation 7 | . . . 4 . 3 Energy Generation 2 | . . . 2 . . Energy Storage 4 | . . . 4 . . Mass Support 2 | . . . . 2 . Inventory Capacity 2 | 2 . . . . . Terrain Scan Density 5 | 5 . . . . . Ranged Accuracy 1 | . . . . . 1 KI Resistance % 2 | . . . . 2 . Protomatter Created 327 | . 12 . 161 65 89 Integrity Restored 822 | . 32 . 481 231 78 Core 687 | . 22 . 457 143 65 Parts 135 | . 10 . 24 88 13 Protomatter Decayed 156 | . . 66 . 1 89 Game ------ Seed QuantumShieldDerivative Manual? 0 Play Time 00:19:43 Cumulative 106.3 hours Start 2022.04.24 @ 16:33:11 End 2022.04.24 @ 16:53:15 Sessions 1 Manual Loads 0 Difficulty Rogue Special Mode Winter2019/RPGLIKE Game No. 135 Rogue 135 Adventurer 0 Explorer 0 Win Type - Total 4 Types 4/0/0/0/0/0/0/0/0 Lore% 56 Gallery% 60 Achievement% 49 Wizard Run 0 Options --------- ASCII 1 Keyboard 1 Movement Numpad Keybinds 0 Fullscreen 1 Font 18/X11 Map View 76x50 Tactical HUD 1 Map Filters NONE Filters NONE Steam 1 RUN: 7058a77a-4413-4b79-87a3-80ad6a57c4c6